bitfinex-derivatives/quotes_SOLF0:USTF0_20260211
["timestamp","ask_amount","ask_price","bid_price","bid_amount"]
[1770825307747,11.2599,79.966,79.92,7.00695472]
[1770825308555,11.2608,79.96,79.92,7.00695472]
[1770825308761,11.2608,79.96,79.913,11.2672]
[1770825309066,11.2608,79.96,79.918,11.2665]
[1770825309260,11.2621,79.95,79.914,7.00720146]
[1770825309563,21.99697618,79.95,79.9,11.269]
[1770825309754,0.65655274,79.949,79.88,7.00735131]
[1770825310356,11.2626,79.946,79.901,11.2688]
[1770825311063,11.2637,79.939,79.896,7.00898041]
[1770825311457,11.2637,79.939,79.86,10.73487618]
[1770825311458,10.73487618,79.94,79.879,7.00898041]
[1770825312066,0.65747118,79.939,79.879,7.00898041]
[1770825312859,11.2655,79.926,79.881,11.2717]
[1770825313462,11.2665,79.919,79.879,7.00898041]
[1770825313662,11.39302554,79.92,79.862,7.01097392]
[1770825314166,11.2676,79.911,79.863,11.2743]
[1770825314369,0.65814936,79.919,79.863,11.2743]
[1770825314565,0.65814936,79.919,79.863,18.29119087]
[1770825314868,11.2674,79.913,79.865,11.274]
[1770825315068,0.65814936,79.919,79.847,7.01689087]
[1770825315264,10.73487618,79.9,79.847,7.01689087]
[1770825315464,22.00407618,79.9,79.85,11.2761]
[1770825315865,22.00407618,79.9,79.85,18.2931273]
[1770825316168,11.2676,79.911,79.855,7.0170273]
[1770825316763,9.18235371,79.942,79.805,175.5053]
[1770825316764,0.57596839,79.936,79.871,7.05523372]
[1770825316972,11.2659,79.923,79.871,7.05523372]
[1770825317165,0.57596839,79.936,79.872,11.273]
[1770825317365,0.57596839,79.936,79.873,7.05523372]
[1770825317667,10.73487618,79.92,79.873,7.05523372]
[1770825317970,0.57772149,79.919,79.857,7.05537307]
[1770825318170,11.2702,79.893,79.821,7.05537307]
[1770825318570,0.49104415,79.899,79.838,7.09966911]
[1770825318770,10.73487618,79.88,79.838,7.09966911]
[1770825319365,0.49104415,79.899,79.838,7.09966911]
[1770825320367,0.50119903,79.919,79.838,7.09966911]
[1770825320768,22.00117618,79.92,79.871,11.2731]
[1770825320976,22.00117618,79.92,79.872,7.08819125]
[1770825321162,22.00117618,79.92,79.815,175.483]
[1770825321163,0.50119903,79.919,79.841,7.08819125]
[1770825321364,22.00117618,79.92,79.871,11.2731]
[1770825321569,22.00117618,79.92,79.84,10.73487618]
[1770825321570,11.2663,79.92,79.872,7.088336]
[1770825321968,10.73487618,79.92,79.872,7.088336]
[1770825322170,0.50303364,79.919,79.854,7.088336]
[1770825323073,0.50303364,79.919,79.86,7.0767913]
[1770825323074,11.2681,79.908,79.86,7.0767913]
[1770825323369,10.73487618,79.9,79.842,7.0767913]
[1770825323966,10.73487618,79.9,79.853,11.2756]
[1770825325673,11.2694,79.898,79.856,11.2752]
[1770825325975,0.48767548,79.899,79.836,7.09218685]
[1770825326164,11.2704,79.891,79.847,7.09218685]
[1770825327179,11.75697548,79.899,79.851,11.276]
[1770825327972,11.2693,79.899,79.856,7.07929016]
[1770825328368,10.73487618,79.9,79.856,7.07929016]
[1770825328571,11.2682,79.907,79.856,7.07929016]
[1770825328771,10.73487618,79.92,79.876,11.2725]
[1770825329379,0.5135287,79.955,79.885,7.07727018]
[1770825329677,11.24567861,79.95,79.885,7.07727018]
[1770825330274,11.2648,79.931,79.885,7.07727018]
[1770825330475,0.5214251,79.982,79.885,7.07727018]
[1770825330781,0.5214251,79.979,79.885,7.07727018]
[1770825330976,11.2603,79.963,79.913,11.2672]
[1770825331574,0.5214251,79.979,79.92,7.06995622]
[1770825331977,11.2593,79.97,79.92,7.06995622]
[1770825332173,10.73487618,79.96,79.91,11.2676]
[1770825332380,0.51879521,79.959,79.881,7.06995622]
[1770825332580,21.99837618,79.94,79.884,7.00532271]
[1770825332982,10.73487618,79.94,79.884,7.00532271]
[1770825333180,11.264,79.937,79.886,11.271]
[1770825333477,10.73487618,79.94,79.887,7.00514188]
[1770825334379,10.73487618,79.96,79.9,7.00514188]
[1770825334878,10.73487618,79.96,79.88,10.73487618]
[1770825334879,0.51115619,79.978,79.912,7.06944942]
[1770825335082,10.73487618,79.99,79.912,7.06944942]
[1770825335380,11.2568,79.988,79.926,7.06925378]
[1770825335576,10.73487618,79.99,79.926,7.06925378]
[1770825335770,0.51115619,80.002,79.926,7.06925378]
[1770825336172,0.50867538,79.989,79.926,7.06925378]
[1770825336678,11.2588,79.974,79.914,11.2671]
[1770825336883,0.50302064,79.969,79.908,7.07065312]
[1770825337774,11.2598,79.966,79.908,7.07065312]
[1770825337982,0.50070947,79.965,79.908,7.07065312]
[1770825338183,0.50070947,79.965,79.86,22.5494]
[1770825338184,10.73487618,79.95,79.861,7.07046143]
[1770825338383,0.50070947,79.949,79.887,7.07046143]
[1770825338885,0.49352971,79.968,79.89,7.07267603]
[1770825339778,0.49352971,79.968,79.903,7.07249098]
[1770825340385,0.49352971,79.968,79.914,11.2671]
[1770825340584,11.2586,79.975,79.915,7.07210297]
[1770825340781,11.50364029,80.028,79.94,10.73487618]
[1770825340984,0.48934282,80.03,79.965,7.07210297]
[1770825341979,11.2524,80.019,79.965,7.07210297]
[1770825342383,11.73935866,80.019,79.965,7.07210297]
[1770825342582,0.53415898,80.018,79.965,7.07210297]
[1770825344389,11.2512,80.028,79.97,7.04680084]
[1770825344690,0.5319703,80.039,79.983,7.04869175]
[1770825345774,10.73487618,80.03,79.964,7.04851982]
[1770825345985,11.25821812,80.03,79.964,7.04851982]
[1770825346288,0.52334194,80.048,79.964,7.04851982]
[1770825346684,11.2508,80.03,79.964,7.04851982]
[1770825347379,11.2508,80.03,79.98,11.2577]
[1770825347686,0.53659987,80.021,79.931,7.0393424]
[1770825347988,10.73487618,80.01,79.954,11.2614]
[1770825348184,11.2543,80.005,79.954,11.2614]
[1770825348391,0.53659987,80.004,79.954,11.2614]
[1770825348884,10.73487618,79.99,79.943,11.263]
[1770825349087,10.73487618,79.99,79.928,7.02351895]
[1770825350581,11.2578,79.981,79.933,11.2644]
[1770825350990,10.73487618,79.97,79.91,7.0175375]
[1770825351681,11.2598,79.966,79.922,11.266]
[1770825352094,10.73487618,79.97,79.922,11.266]
[1770825352388,10.73487618,79.97,79.922,18.29668496]
[1770825352586,10.73487618,79.98,79.936,11.264]
[1770825352786,11.27423007,79.98,79.923,7.03068496]
[1770825352987,11.2583,79.977,79.935,11.2641]
[1770825353288,11.27423007,79.98,79.923,7.03068496]
[1770825353793,11.2581,79.979,79.933,11.2644]
[1770825354786,11.27423007,79.98,79.939,11.2635]
[1770825354787,10.73487618,79.98,79.939,11.2635]
[1770825355084,10.73487618,79.98,79.934,7.02949336]
[1770825355489,10.73487618,79.98,79.936,7.02934528]
[1770825356494,11.2561,79.993,79.944,11.2628]
[1770825356694,0.53710435,79.999,79.936,7.02934528]
[1770825356989,10.73487618,79.98,79.936,7.02934528]
[1770825357592,10.73487618,79.98,79.893,22.5401]
[1770825357593,10.73487618,79.98,79.938,7.02996502]
[1770825357892,0.53710435,79.999,79.938,7.02996502]
[1770825358586,0.5651642,80.017,79.952,7.01094008]
[1770825359191,11.252,80.022,79.975,7.01094008]
[1770825359386,23.09451559,80.081,79.975,7.01094008]
[1770825359387,10.73487618,80.05,79.975,7.01094008]
[1770825359790,0.56322385,80.069,80.004,7.01079955]
[1770825360493,10.73487618,80.05,80.005,11.2542]
[1770825361697,10.73487618,80.05,79.997,11.2554]
[1770825361893,10.73487618,80.05,79.983,7.01591334]
[1770825362497,10.73487618,80.05,79.997,7.01591334]
[1770825362686,0.54880227,80.069,79.997,7.01591334]
[1770825362993,10.73487618,80.09,80.034,7.03577759]
[1770825363781,0.5050335,80.089,80.034,7.03577759]
[1770825364695,11.2436,80.082,80.034,7.03577759]
[1770825365385,0.5050335,80.089,80.034,18.28597759]
[1770825365698,10.73487618,80.09,80.035,7.0786597]
[1770825366290,0.41481743,80.106,80.035,7.0786597]
[1770825366291,10.73487618,80.1,80.035,7.0786597]
[1770825366695,10.73487618,80.12,80.048,7.12699932]
[1770825367203,0.31621549,80.146,80.051,7.12699932]
[1770825367492,11.04940587,80.14,80.061,7.12699932]
[1770825367689,0.31452969,80.14,80.079,7.12686218]
[1770825367889,9.26872488,80.183,80.042,22.498]
[1770825367890,11.04940587,80.15,80.081,7.12686218]
[1770825368291,11.2345,80.146,80.082,11.2435]
[1770825368598,10.73487618,80.15,80.083,7.02163352]
[1770825368896,10.68201963,80.16,80.083,7.02163352]
[1770825369196,10.68201963,80.16,80.099,7.02163352]
[1770825369197,0.52304034,80.159,80.099,7.02163352]
[1770825369892,11.2345,80.146,80.077,7.02150871]
[1770825370098,0.52137231,80.145,80.077,7.02150871]
[1770825370287,0.52137231,80.139,80.062,11.2462]
[1770825370490,11.11843007,80.12,80.059,7.02150871]
[1770825370796,0.43641044,80.119,80.031,7.0631269]
[1770825371188,0.43641044,80.118,80.05,11.2479]
[1770825371699,0.43641044,80.118,80.048,7.06301133]
[1770825371895,0.43485013,80.116,80.049,7.06301133]
[1770825372095,0.43485013,80.099,80.031,7.06301133]
[1770825372494,10.68201963,80.1,80.031,7.06301133]
[1770825372495,0.49072283,80.096,80.031,7.06301133]
[1770825372799,0.49072283,80.079,80.013,7.03414799]
[1770825372991,0.49072283,80.076,80.013,7.03414799]
[1770825373188,10.68201963,80.06,79.995,7.03414799]
[1770825373395,0.49072283,80.059,79.995,7.03414799]
[1770825373991,10.68201963,80.05,79.995,7.03414799]
[1770825374799,0.52074188,80.047,79.984,11.2572]
[1770825374998,11.20276151,80.03,79.976,7.01742319]
[1770825375292,11.20276151,80.03,79.956,7.01742319]
[1770825375293,0.52074188,80.026,79.956,7.01742319]
[1770825375498,10.68201963,80.01,79.931,7.01742319]
[1770825375800,0.51930952,80.009,79.94,18.28071439]
[1770825376499,10.68201963,79.99,79.94,7.01731439]
[1770825376692,0.53243731,79.989,79.921,7.0099376]
[1770825376993,0.53243731,79.989,79.813,12.57]
[1770825376994,10.68201963,80.02,79.96,11.2606]
[1770825377194,10.68201963,80.02,79.951,7.0099376]
[1770825377393,10.68201963,80.0,79.951,7.0099376]
[1770825377590,10.68201963,80.0,79.938,11.2637]
[1770825377890,10.68201963,80.0,79.91,10.68201963]
[1770825377891,10.68201963,80.0,79.939,7.00983457]
[1770825378201,11.2552,79.999,79.939,7.00983457]
[1770825378401,10.68201963,80.0,79.939,7.00983457]
[1770825378894,0.53751424,79.999,79.94,11.2634]
[1770825379489,0.53751424,79.999,79.939,7.00983457]
[1770825379689,10.68201963,79.98,79.929,11.2649]
[1770825380190,10.68201963,79.98,79.919,7.00565747]
[1770825380396,0.53618505,79.979,79.919,7.00565747]
[1770825381490,10.68201963,79.98,79.921,7.00771079]
[1770825382498,11.2585,79.976,79.921,7.00771079]
[1770825384003,10.68201963,79.98,79.925,7.0097276]
[1770825384909,21.94001963,79.98,79.925,7.0097276]
[1770825387104,10.68201963,79.98,79.927,7.03035412]
[1770825388197,10.68201963,79.98,79.929,7.02792732]
[1770825388407,10.68201963,80.0,79.929,7.02792732]
[1770825389108,10.68201963,80.02,79.959,7.02670191]
[1770825389710,10.68201963,80.02,79.974,18.2830304]
[1770825389905,10.68201963,80.04,79.975,7.0243304]
[1770825390326,0.22400434,80.019,79.957,7.0243304]
[1770825390519,10.68201963,80.0,79.957,7.0243304]
[1770825390728,10.68201963,80.0,79.939,7.03910385]
[1770825390921,10.68201963,80.0,79.945,7.03910385]
[1770825391624,11.2553,79.998,79.945,7.03910385]
[1770825391832,10.81080351,80.0,79.945,7.03910385]
[1770825392421,138.0,80.013,79.9,10.68201963]
[1770825392422,0.07076942,79.999,79.925,18.31393373]
[1770825392626,10.68201963,79.98,79.925,18.31393373]
[1770825392822,10.68201963,79.98,79.925,7.04843373]
[1770825393023,186.42931507,80.053,79.939,7.04843373]
[1770825393024,10.68201963,80.0,79.939,7.04843373]
[1770825393533,10.68201963,79.98,79.939,7.04843373]
[1770825394234,10.68201963,79.98,79.94,11.2634]
[1770825394827,10.68201963,79.98,79.939,7.04843373]
[1770825395128,10.68201963,79.98,79.93,11.2649]
[1770825395328,10.68201963,79.98,79.921,7.04783012]
[1770825396632,10.68201963,79.96,79.922,11.266]
[1770825397322,10.68201963,79.96,79.898,7.04227153]
[1770825397526,10.68201963,79.94,79.898,7.04227153]
[1770825397928,10.68201963,79.94,79.88,7.04003328]
[1770825398130,10.68201963,79.92,79.861,7.04003328]
[1770825398325,10.68201963,79.9,79.861,7.04003328]
[1770825398529,10.68201963,79.9,79.863,11.2742]
[1770825399433,10.68201963,79.9,79.853,11.2757]
[1770825399837,10.68201963,79.92,79.841,7.07659619]
[1770825400029,10.68201963,79.92,79.862,6.72564625]
[1770825400430,21.94841963,79.92,79.862,6.72564625]
[1770825400635,10.68201963,79.92,79.862,6.72564625]
[1770825401139,10.68201963,79.92,79.879,11.272]
[1770825401338,10.68201963,79.92,79.862,6.72564625]
[1770825401836,11.2679,79.909,79.855,11.2753]
[1770825402145,10.68201963,79.9,79.843,6.72564625]
[1770825402439,6.8304162,79.919,79.824,6.72564625]
[1770825402440,10.68201963,79.86,79.824,6.72564625]
[1770825402625,10.68201963,79.86,79.796,6.72564625]
[1770825403537,17.51243583,79.86,79.796,6.72564625]
[1770825404038,10.68201963,79.86,79.814,11.2812]
[1770825404441,10.68201963,79.86,79.815,6.72564625]
[1770825404935,10.68201963,79.86,79.819,11.2805]
[1770825405139,10.68201963,79.86,79.815,6.72564625]
[1770825405844,11.2752,79.857,79.796,6.72564625]
[1770825406140,10.68201963,79.86,79.796,6.72564625]
[1770825406443,10.68201963,79.86,79.813,11.2814]
[1770825407137,10.68201963,79.86,79.796,6.72564625]
[1770825407138,6.8304162,79.857,79.802,11.2829]
[1770825407339,10.68201963,79.84,79.761,6.72564625]
[1770825408144,10.68201963,79.84,79.76,10.68201963]
[1770825408145,10.68201963,79.84,79.8,11.2831]
[1770825408648,10.68201963,79.86,79.791,6.72564625]
[1770825409944,6.8304162,79.875,79.809,6.72564625]
[1770825410333,11.2749,79.859,79.81,11.2818]
[1770825411246,11.2749,79.859,79.798,6.72564625]
[1770825411247,11.2761,79.851,79.801,11.283]
[1770825411442,10.68201963,79.84,79.779,6.34267399]
[1770825412340,10.68201963,79.84,79.801,11.2831]
[1770825413837,6.56740184,79.839,79.747,60.1613]
[1770825414039,10.68201963,79.81,79.748,6.34267399]
[1770825415643,11.2821,79.808,79.763,11.2884]
[1770825416746,11.2821,79.808,79.748,6.34267399]
[1770825417146,10.68201963,79.85,79.777,6.34267399]
[1770825417348,6.56740184,79.849,79.777,6.34267399]
[1770825417647,11.2775,79.841,79.777,6.34267399]
[1770825417944,6.56740184,79.849,79.777,6.34267399]
[1770825418545,11.2773,79.842,79.793,11.2841]
[1770825419150,11.2785,79.834,79.785,11.2853]
[1770825419343,6.56740184,79.849,79.777,6.34267399]
[1770825419744,11.2778,79.839,79.777,6.34267399]
[1770825420142,11.2766,79.847,79.793,11.2841]
[1770825420342,6.56740184,79.849,79.793,11.2841]
[1770825420842,6.56740184,79.849,79.777,6.34267399]
[1770825421147,6.56740184,79.829,79.741,6.34267399]
[1770825421551,11.2811,79.815,79.768,11.2876]
[1770825422147,6.56740184,79.829,79.741,6.34267399]
[1770825422343,136.94,79.848,79.74,10.68201963]
[1770825422344,6.56740184,79.848,79.769,6.34267399]
[1770825422548,10.68201963,79.86,79.769,6.34267399]
[1770825422746,11.2752,79.857,79.81,11.2818]
[1770825422952,10.68201963,79.86,79.793,6.34267399]
[1770825422953,6.56740184,79.859,79.793,6.34267399]
[1770825423353,11.2727,79.875,79.823,11.2799]
[1770825423542,11.2727,79.875,79.81,6.34267399]
[1770825423543,10.68201963,79.9,79.81,6.34267399]
[1770825423742,11.2676,79.911,79.862,11.2745]
[1770825423942,17.24942147,79.92,79.851,6.34267399]
[1770825424249,11.2675,79.912,79.861,11.2746]
[1770825424550,11.2675,79.912,79.862,6.34267399]
[1770825424949,6.56740184,79.936,79.862,6.34267399]
[1770825425345,10.68201963,79.94,79.862,6.34267399]
[1770825425650,6.56740184,79.939,79.862,6.34267399]
[1770825425850,10.68201963,79.96,79.881,6.34267399]
[1770825426043,6.56740184,79.953,79.881,6.34267399]
[1770825426443,17.24942147,79.94,79.881,6.34267399]
[1770825426648,6.56740184,79.939,79.881,6.34267399]
[1770825427053,6.56740184,79.935,79.873,11.2729]
[1770825428646,6.56740184,79.935,79.881,11.2717]
[1770825428955,6.56740184,79.954,79.882,6.34267399]
[1770825429161,10.73503376,79.97,79.882,6.34267399]
[1770825429350,6.56740184,79.969,79.882,6.34267399]
[1770825429950,6.56740184,79.965,79.882,6.34267399]
[1770825430552,6.56740184,79.965,79.899,6.34267399]
[1770825430961,6.56740184,79.965,79.871,6.34267399]
[1770825431152,6.56740184,79.965,79.905,6.34267399]
[1770825431356,10.73503376,79.97,79.905,6.34267399]
[1770825431857,174.9963,80.038,79.905,6.34267399]
[1770825431858,6.56740184,79.979,79.905,6.34267399]
[1770825432661,6.56740184,79.979,79.921,17.60877399]
[1770825434063,6.56740184,79.969,79.884,6.34267399]
[1770825434750,6.56740184,79.966,79.898,11.2694]
[1770825435156,6.56740184,79.966,79.898,6.34267399]
[1770825435360,11.26,79.965,79.908,11.2678]
[1770825436456,11.26,79.965,79.899,11.2692]
[1770825436457,11.2618,79.952,79.899,11.2692]
[1770825436659,6.56740184,79.965,79.899,11.2692]
[1770825436858,6.56740184,79.965,79.899,17.61187399]
[1770825437762,10.73503376,79.99,79.906,6.34267399]
[1770825438067,6.56740184,79.989,79.906,6.34267399]
[1770825438364,6.56740184,79.989,79.9,10.73503376]
[1770825438365,6.56740184,79.983,79.923,11.2658]
[1770825438560,6.56740184,79.983,79.922,6.34267399]
[1770825438965,6.56740184,79.983,79.9,10.73503376]
[1770825438966,10.73503376,80.0,79.927,6.34267399]
[1770825439555,6.56740184,80.014,79.927,6.34267399]
[1770825439959,6.56740184,80.014,79.941,6.34267399]
[1770825440161,11.2531,80.014,79.958,11.2609]
[1770825440467,10.73503376,80.03,79.941,6.34267399]
[1770825440468,5.920706,80.009,79.941,6.34267399]
[1770825440664,11.2567,79.988,79.941,6.34267399]
[1770825440968,16.65573976,79.97,79.905,6.48162111]
[1770825441371,5.920706,79.989,79.905,6.48162111]
[1770825442473,5.920706,79.989,79.923,6.48162111]
[1770825442661,10.73503376,79.99,79.923,6.48162111]
[1770825442867,11.2545,80.004,79.949,6.48162111]
[1770825443963,10.73503376,79.99,79.929,6.48162111]
[1770825444168,5.920706,79.989,79.91,6.48162111]
[1770825444669,22.5029,80.026,79.91,6.48162111]
[1770825444670,5.920706,79.969,79.91,6.48162111]
[1770825446369,5.920706,79.969,79.842,37.58]
[1770825446370,10.73503376,79.95,79.879,6.52435638]
[1770825446578,5.90289491,79.949,79.879,6.52435638]
[1770825447879,10.73503376,79.92,79.859,6.52435638]
[1770825449076,10.73503376,79.92,79.871,11.2732]
[1770825449279,10.73503376,79.92,79.859,6.52435638]
[1770825449280,5.90289491,79.919,79.859,6.52435638]
[1770825449484,5.90289491,79.919,79.831,6.52435638]
[1770825450881,10.73503376,79.92,79.854,6.52435638]
[1770825452485,5.90289491,79.936,79.881,11.2717]
[1770825452681,5.90289491,79.929,79.881,11.2717]
[1770825453082,5.90289491,79.923,79.869,11.2734]
[1770825453291,5.90289491,79.923,79.854,6.52435638]
[1770825453292,10.73503376,79.91,79.854,6.52435638]
[1770825453490,5.90289491,79.909,79.828,6.52435638]
[1770825453987,11.269,79.901,79.856,11.2753]
[1770825454184,10.73503376,79.89,79.856,11.2753]
[1770825454383,5.90289491,79.9,79.856,11.2753]
[1770825454693,10.73503376,79.91,79.864,11.2741]
[1770825455090,10.73503376,79.91,79.845,6.52435638]
[1770825455286,5.90289491,79.919,79.845,6.52435638]
[1770825455584,5.90289491,79.919,79.862,6.52435638]
[1770825455986,10.73503376,79.95,79.862,6.52435638]
[1770825456184,5.90289491,79.956,79.871,6.52435638]
[1770825456389,16.63792867,79.97,79.891,6.52435638]
[1770825456588,5.90289491,79.97,79.933,11.2643]
[1770825456793,5.90289491,79.988,79.911,6.52435638]
[1770825456989,5.90289491,79.988,79.932,11.2645]
[1770825456990,11.2579,79.98,79.932,11.2645]
[1770825457192,5.90289491,79.988,79.911,6.52435638]
[1770825457782,5.90289491,79.988,79.941,11.2632]
[1770825457987,10.73503376,79.97,79.911,6.52435638]
[1770825460394,5.90289491,79.969,79.891,6.52435638]
[1770825460792,5.90289491,79.969,79.909,6.52435638]
[1770825461390,11.2596,79.968,79.917,11.2667]
[1770825461590,5.90289491,79.969,79.909,6.52435638]
[1770825462885,5.90289491,79.969,79.924,11.2656]
[1770825463595,17.16419491,79.956,79.911,11.2675]
[1770825463788,5.90289491,79.955,79.891,6.52435638]
[1770825463990,5.90289491,79.949,79.891,6.52435638]
[1770825464691,5.90289491,79.949,79.9,11.2691]
[1770825465300,5.90289491,79.969,79.891,6.52435638]
[1770825465803,5.90289491,79.969,79.908,6.52435638]
[1770825465986,5.90289491,79.969,79.875,6.52435638]
[1770825466486,10.73503376,79.94,79.875,6.52435638]
[1770825466686,5.90289491,79.939,79.875,6.52435638]
[1770825467305,5.90289491,79.937,79.875,6.52435638]
[1770825467490,5.90289491,79.929,79.877,11.2722]
[1770825467692,5.90289491,79.929,79.84,10.73503376]
[1770825467693,10.73503376,79.92,79.856,6.52435638]
[1770825468106,5.90289491,79.919,79.856,6.52435638]
[1770825468292,5.90289491,79.919,79.876,11.2724]
[1770825468492,5.90289491,79.919,79.856,6.52435638]
[1770825469095,17.16929491,79.919,79.874,11.2726]
[1770825469298,5.90289491,79.918,79.856,6.52435638]
[1770825469493,10.73503376,79.9,79.831,6.52435638]
[1770825469995,10.73503376,79.9,79.862,11.2744]
[1770825470593,10.73503376,79.9,79.854,11.2755]
[1770825470801,6.02452212,79.905,79.831,6.52435638]
[1770825470999,6.02452212,79.899,79.831,6.52435638]
[1770825471298,6.02452212,79.897,79.831,6.52435638]
[1770825472094,10.73503376,79.88,79.836,11.2781]
[1770825472298,6.02452212,79.879,79.81,5.90593645]
[1770825472498,10.73503376,79.88,79.81,5.90593645]
[1770825473000,10.73503376,79.88,79.838,11.2777]
[1770825473700,10.73503376,79.88,79.83,11.2789]
[1770825474592,11.2721,79.879,79.83,11.2789]
[1770825474792,6.02452212,79.879,79.83,11.2789]
[1770825475100,6.02452212,79.875,79.81,5.90593645]
[1770825475497,10.73503376,79.86,79.81,5.90593645]
[1770825475697,10.73503376,79.86,79.82,11.2804]
[1770825476196,6.02452212,79.875,79.81,5.90593645]
[1770825476605,6.02452212,79.875,79.78,153.87503376]
[1770825476606,6.02452212,79.859,79.79,5.90593645]
[1770825477190,6.02452212,79.855,79.803,11.2828]
[1770825477395,10.73503376,79.84,79.79,5.90593645]
[1770825477696,6.02452212,79.839,79.772,5.90593645]
[1770825477904,6.02452212,79.839,79.791,11.2844]
[1770825478302,10.73503376,79.86,79.74,33.31833376]
[1770825478303,16.75955588,79.82,79.741,5.90593645]
[1770825478606,16.75955588,79.82,79.758,5.90593645]
[1770825479107,10.73503376,79.82,79.777,11.2864]
[1770825479309,6.02452212,79.838,79.777,11.2864]
[1770825480706,6.02452212,79.819,79.766,11.2879]
[1770825480903,6.02452212,79.819,79.758,5.90593645]
[1770825481105,10.73503376,79.82,79.758,5.90593645]
[1770825481703,10.73503376,79.82,79.775,11.2867]
[1770825481901,10.73503376,79.82,79.758,5.90593645]
[1770825482314,10.73503376,79.8,79.751,11.2901]
[1770825483107,6.02452212,79.81,79.72,10.73503376]
[1770825483108,6.02452212,79.81,79.757,5.90593645]
[1770825484101,10.73503376,79.82,79.767,5.90593645]
[1770825484705,6.02452212,79.819,79.767,5.90593645]
[1770825484912,6.02452212,79.819,79.716,22.5901]
[1770825484913,6.02452212,79.799,79.741,5.90593645]
[1770825485410,10.73503376,79.8,79.759,11.289]
[1770825485603,6.02452212,79.799,79.741,5.90593645]
[1770825486200,6.02452212,79.817,79.759,11.289]
[1770825486399,6.02452212,79.799,79.741,5.90593645]
[1770825487006,6.02452212,79.799,79.756,11.2894]
[1770825487208,10.73503376,79.8,79.741,5.90593645]
[1770825487405,6.02452212,79.817,79.741,5.90593645]
[1770825487608,11.2811,79.816,79.77,11.2873]
[1770825488005,6.02452212,79.836,79.759,5.90593645]
[1770825489112,6.02452212,79.836,79.789,11.2847]
[1770825489408,6.02452212,79.819,79.755,5.90593645]
[1770825490610,6.02452212,79.819,79.768,11.2877]
[1770825490810,6.02452212,79.819,79.755,5.90593645]
[1770825491115,6.02452212,79.819,79.732,5.90593645]
[1770825491310,11.2828,79.804,79.751,11.2901]
[1770825491617,6.02452212,79.799,79.732,5.90593645]
[1770825491807,6.02452212,79.799,79.748,11.2905]
[1770825492713,6.02452212,79.799,79.755,11.2895]
[1770825493312,6.02452212,79.799,79.762,11.2886]
[1770825493517,6.02452212,79.778,79.687,5.90593645]
[1770825493716,16.79230348,79.73,79.643,5.90593645]
[1770825493908,16.79230348,79.73,79.642,787.02855672]
[1770825493909,16.79230348,79.73,79.691,11.2986]
[1770825494109,16.79230348,79.73,79.666,5.90593645]
[1770825494909,16.79230348,79.73,79.684,11.2996]
[1770825495110,6.02452212,79.729,79.684,11.2996]
[1770825495518,6.02452212,79.728,79.673,11.3011]
[1770825495821,6.02452212,79.749,79.666,5.90593645]
[1770825496415,10.76778136,79.75,79.69,5.90593645]
[1770825496620,6.02452212,79.766,79.69,5.90593645]
[1770825497918,6.02452212,79.749,79.69,5.90593645]
[1770825498118,6.02452212,79.749,79.625,175.903]
[1770825498119,10.76778136,79.73,79.671,5.90593645]
[1770825498713,6.02452212,79.749,79.671,5.90593645]
[1770825499519,11.2908,79.747,79.694,11.2982]
[1770825499719,10.76778136,79.75,79.671,5.90593645]
[1770825499720,6.02452212,79.746,79.671,5.90593645]
[1770825500019,6.02452212,79.742,79.693,11.2983]
[1770825501528,10.76778136,79.75,79.66,10.76778136]
[1770825501529,10.76778136,79.75,79.694,5.91616539]
[1770825502024,17.28006857,79.749,79.698,11.2976]
[1770825502216,10.76778136,79.75,79.694,5.91616539]
[1770825503025,10.76778136,79.75,79.704,11.2967]
[1770825504734,10.76778136,79.75,79.714,11.2953]
[1770825504920,10.76778136,79.75,79.694,5.91616539]
[1770825505325,17.28016857,79.748,79.694,5.91616539]
[1770825505629,5.98946857,79.747,79.67,5.91616539]
[1770825506725,10.76778136,79.75,79.689,5.62594834]
[1770825507429,6.1649424,79.749,79.689,5.62594834]
[1770825507724,6.1649424,79.749,79.661,5.62594834]
[1770825508325,6.1649424,79.737,79.69,11.2987]
[1770825508730,6.1649424,79.737,79.678,5.62594834]
[1770825509527,16.93272376,79.73,79.678,5.62594834]
[1770825510021,11.2935,79.728,79.685,11.2994]
[1770825510218,10.76778136,79.73,79.678,5.62594834]
[1770825510422,6.1649424,79.749,79.706,11.2965]
[1770825510617,6.1649424,79.765,79.707,5.62594834]
[1770825510923,17.4490424,79.794,79.741,5.62594834]
[1770825511120,6.1649424,79.812,79.741,5.62594834]
[1770825512323,11.2826,79.805,79.76,11.2888]
[1770825512527,6.1649424,79.809,79.741,5.62594834]
[1770825512926,6.1649424,79.824,79.774,11.2868]
[1770825513323,6.1649424,79.824,79.761,5.62594834]
[1770825513517,6.1649424,79.799,79.748,11.2906]